Workbook

Sheet Index
F1: Section Check | G1: =IF(COUNTA($A$19:$A$163)=COUNTIF($A$19:$A$163,"OK"),"OK","Check") -> OK
C5: Copyright Jemena Limited. All rights reserved. Jemena is not liable for any loss caused by reliance on this document.
C7: Model Index
C9: Description of model | D9: 1. Calculates ActewAGL Distribution's revenue for 2015/16 under the current tariff structure and the proposed tariff structure beginning 1 July 2016
D10: 2. Presents the calculated prices for 2016/17 as displayed in the proposed Initial Reference Tariff Schedule & the reconciliation with the proposed smoothed revenue requirement
C12: Sheet Name | D12: Sheet Description
C13: Output | Difference | D13: shows difference between:
D14: (i) 2015/16 revenues calculated from 'Calc | Existing Revenue' & 'Output | Proposed Revenue' tabs
D15: (ii) proposed smoothed revenue requirement for 2016/17 and equivalent revenues calculated in 'Output | Proposed Revenue' tab
C17: Output | Proposed Revenue | D17: outputs 2015/16 & 2016/17 revenues under proposed tariff structures calculated from 'Inputs | Proposed Tariffs' tab
C19: Input | Proposed Tariffs | D19: inputs under proposed tariff structure submitted in the access arrangement proposal:
D20: (i) hypothetical prices for 2015/16 to solve for the same revenues in the 'Calc | Existing Revenue' tab
D21: (ii) proposed prices for 2016/17 (as displayed in the proposed Initial Reference Tariff Schedule) to recover the proposed smoothed revenue requirement found in the 'Output | Difference' tab
C23: Calc | Existing Revenue | D23: calculates revenue for 2015/16 under existing tariff structure and prices. Quantities used are from Core Energy's Demand Forecast model (submission) and translate to the same quantities in the 'Inputs | Proposed Tariffs' tab
C27: Version Control | D27: Developer | E27: Comments | F27: Sheet | G27: Cell reference | H27: Date | I27: Legend
C28: Version 1 | D28: Jemena Limited | H28: 2015-06-23
C36: END

Sheet Output | Difference
F1: Section Check | G1: =IF(COUNTA($A$6:$A$55)=COUNTIF($A$6:$A$55,"OK"),"OK","Check") -> OK
C6: ALLOWABLE REVENUE
C8: A. 2015-16 | I8: 2015-16
E9: Source | F9: Unit | G9: Basis
C10: Total Revenue from Existing Tariffs | E10: Calc | Existing Revenue | F10: $M | G10: $real2016 | I10: ='Calc | Existing Revenue'!H16/10^6 -> 70.45386777
C11: Total Revenue from Proposed Tariffs | E11: Output | Proposed Tariffs | F11: $M | G11: $real2016 | I11: ='Output | Proposed Revenue'!H13/10^6 -> 70.45386777
C13: Difference | E13: Calculated | F13: $M | G13: $real2016 | I13: =I10-I11 -> 0
C17: B. 2016-17 | I17: 2016-17
E18: Source | F18: Unit | G18: Basis
C19: Proposed Smoothed Building Block | E19: AAD | F19: $M | G19: nominal | I19: 69.29306985
C20: Total Revenue from Proposed Tariffs | E20: Output | Proposed Tariffs | F20: $M | G20: nominal | I20: ='Output | Proposed Revenue'!I13/10^6 -> 69.29306985
C22: Difference | E22: Calculated | F22: $M | G22: nominal | I22: =I19-I20 -> 0
C28: END

Sheet Output | Proposed Revenue
F1: Section Check | G1: =IF(COUNTA($A$13:$A$17)=COUNTIF($A$13:$A$17,"OK"),"OK","Check") -> Check
N4: 2015-16 | O4: 2016-17
M5: CPI | N5: 1 | O5: 1.025481122
C6: TOTAL
H8: 2015-16 | I8: 2016-17
E9: Source | F9: Basis
C10: Volume Market | E10: calculated | F10: $nominal | H10: 67692226.09 | I10: 66380308.65
C11: Demand Market | E11: calculated | F11: $nominal | H11: 2761641.681 | I11: 2912761.202
A13: =IF(ROUND(SUM(H13:I13)-SUM('Input | Proposed Tariffs'!G156:AI156),6)=0,"Ok","Check") -> Check | C13: Total | E13: calculated | F13: $nominal | H13: 70453867.77 | I13: 69293069.85
C14: Total | E14: calculated | F14: $real2016 | H14: 70453867.77 | I14: 67571277.88
A16: =IF(COUNTA($H16:$H16)=COUNTIF($H16:$H16,"OK"),"OK","Check") -> Check | F16: Ok/Check | H16: =IF(ROUND(SUM('Input | Proposed Tariffs'!G156,'Input | Proposed Tariffs'!J156,'Input | Proposed Tariffs'!M156,'Input | Proposed Tariffs'!P156,'Input | Proposed Tariffs'!S156,'Input | Proposed Tariffs'!V156,'Input | Proposed Tariffs'!Y156,'Input | Proposed Tariffs'!AB156,'Input | Proposed Tariffs'!AE156,'Input | Proposed Tariffs'!AH156)-H13,6)=0,"Ok","Check") -> Check | I16: =IF(ROUND(SUM('Input | Proposed Tariffs'!H156,'Input | Proposed Tariffs'!K156,'Input | Proposed Tariffs'!N156,'Input | Proposed Tariffs'!Q156,'Input | Proposed Tariffs'!T156,'Input | Proposed Tariffs'!W156,'Input | Proposed Tariffs'!Z156,'Input | Proposed Tariffs'!AC156,'Input | Proposed Tariffs'!AF156,'Input | Proposed Tariffs'!AI156)-I13,6)=0,"Ok","Check") -> Check
C19: END

Sheet Input | Proposed Tariffs
F1: Section check | G1: =IF(COUNTA($A$13:$A$156)=COUNTIF($A$13:$A$156,"OK"),"OK","Check") -> Check
C6: Forecast Quantities
C8: Basis | G8: Customer Number or Delivery Station | J8: Throughput Block 1 (GJ) | M8: Throughput Block 2 (GJ) | P8: Throughput Block 3 (GJ) | S8: Throughput Block 4 (GJ) | V8: Capacity Block 1 (GJ) | Y8: Capacity Block 2 (GJ) | AB8: Capacity Block 3 (GJ) | AE8: Ancillary services (Hour) | AH8: Ancillary services (Request)
C9: Year | G9: 2015-16 | H9: 2016-17 | J9: 2015-16 | K9: 2016-17 | M9: 2015-16 | N9: 2016-17 | P9: 2015-16 | Q9: 2016-17 | S9: 2015-16 | T9: 2016-17 | V9: 2015-16 | W9: 2016-17 | Y9: 2015-16 | Z9: 2016-17 | AB9: 2015-16 | AC9: 2016-17 | AE9: 2015-16 | AF9: 2016-17 | AH9: 2015-16 | AI9: 2016-17
C11: TARIFF CLASS - RESIDENTIAL | E11: Source
C12: Individually metered (VRI) | E12: JGN / AAD | G12: ='[2]Pricing Block Summary'!I16/365 -> 94742.1162 | H12: ='[2]Pricing Block Summary'!J16/365 -> 96383.52216 | J12: ='[2]Pricing Block Summary'!I9 -> 892530.0648 | K12: ='[2]Pricing Block Summary'!J9 -> 873114.38 | M12: ='[2]Pricing Block Summary'!I10 -> 1352277.082 | N12: ='[2]Pricing Block Summary'!J10 -> 1322860.274 | P12: ='[2]Pricing Block Summary'!I11 -> 20166.33048 | Q12: ='[2]Pricing Block Summary'!J11 -> 19727.64149 | S12: ='[2]Pricing Block Summary'!I12 -> 906.3519318 | T12: ='[2]Pricing Block Summary'!J12 -> 886.6355725
C13: Individually metered with gas heating & hot water (VRH) | E13: JGN / AAD | G13: ='[2]Pricing Block Summary'!I27/365 -> 37866.2711 | H13: ='[2]Pricing Block Summary'!J27/365 -> 38724.19123 | J13: ='[2]Pricing Block Summary'!I21 -> 607079.4073 | K13: ='[2]Pricing Block Summary'!J21 -> 593746.9301 | M13: ='[2]Pricing Block Summary'!I22 -> 1216688.312 | N13: ='[2]Pricing Block Summary'!J22 -> 1189967.806 | P13: ='[2]Pricing Block Summary'!I23 -> 705729.811 | Q13: ='[2]Pricing Block Summary'!J23 -> 690230.8062
C14: Boundary metered with gas heating and cooking (VRB) | E14: JGN / AAD | G14: ='[2]Pricing Block Summary'!I38/365 -> 50.23699897 | H14: ='[2]Pricing Block Summary'!J38/365 -> 78.48928437 | J14: ='[2]Pricing Block Summary'!I32 -> 10011.97009 | K14: ='[2]Pricing Block Summary'!J32 -> 13970.00931 | M14: ='[2]Pricing Block Summary'!I33 -> 10631.26721 | N14: ='[2]Pricing Block Summary'!J33 -> 14834.13359
C15: Large scale generation (VRG) | E15: JGN / AAD | G15: ='[2]Pricing Block Summary'!I49/365 -> 0 | H15: ='[2]Pricing Block Summary'!J49/365 -> 0 | V15: ='[2]Pricing Block Summary'!I43 -> 0 | W15: ='[2]Pricing Block Summary'!J43 -> 0 | Y15: ='[2]Pricing Block Summary'!I44 -> 0 | Z15: ='[2]Pricing Block Summary'!J44 -> 0 | AB15: ='[2]Pricing Block Summary'!I45 -> 0 | AC15: ='[2]Pricing Block Summary'!J45 -> 0
C17: Ancillary services | E17: Source
C18: Reconnection fee | E18: JGN / AAD | AH18: ='[2]Pricing Block Summary'!I57 -> 104 | AI18: ='[2]Pricing Block Summary'!J57 -> 104
C19: Disconnection fee | E19: JGN / AAD | AH19: ='[2]Pricing Block Summary'!I60 -> 115.6981874 | AI19: ='[2]Pricing Block Summary'!J60 -> 102.7995204
C20: Decommissioning & meter removal | E20: JGN / AAD | AH20: ='[2]Pricing Block Summary'!I63 -> 615.9350774 | AI20: ='[2]Pricing Block Summary'!J63 -> 801.7116536
C21: Special meter read | E21: JGN / AAD | AH21: ='[2]Pricing Block Summary'!I66 -> 25066.44947 | AI21: ='[2]Pricing Block Summary'!J66 -> 25066.44947
C23: TARIFF CLASS - BUSINESS | E23: Source
C24: Small (VBS) | E24: JGN / AAD | G24: ='[2]Pricing Block Summary'!I79/365 -> 5649.2175 | H24: ='[2]Pricing Block Summary'!J79/365 -> 5792.603021 | J24: ='[2]Pricing Block Summary'!I73 -> 59856.65959 | K24: ='[2]Pricing Block Summary'!J73 -> 60402.57074 | M24: ='[2]Pricing Block Summary'!I74 -> 816506.2283 | N24: ='[2]Pricing Block Summary'!J74 -> 823953.0162 | P24: ='[2]Pricing Block Summary'!I75 -> 658423.2555 | Q24: ='[2]Pricing Block Summary'!J75 -> 664428.2781
C25: Medium (VBM) | E25: JGN / AAD | G25: ='[2]Pricing Block Summary'!I90/365 -> 7.755381383 | H25: ='[2]Pricing Block Summary'!J90/365 -> 8.02113567 | J25: ='[2]Pricing Block Summary'!I84 -> 11733.28846 | K25: ='[2]Pricing Block Summary'!J84 -> 11963.32914 | M25: ='[2]Pricing Block Summary'!I85 -> 8864.72263 | N25: ='[2]Pricing Block Summary'!J85 -> 9038.522743 | P25: ='[2]Pricing Block Summary'!I86 -> 6957.856587 | Q25: ='[2]Pricing Block Summary'!J86 -> 7094.271037
C26: Large capacity (DBC) | E26: JGN / AAD | V26: ='[2]Pricing Block Summary'!I98 -> 1794.584391 | W26: ='[2]Pricing Block Summary'!J98 -> 1794.584391 | Y26: ='[2]Pricing Block Summary'!I99 -> 1944.411894 | Z26: ='[2]Pricing Block Summary'!J99 -> 1944.411894 | AB26: ='[2]Pricing Block Summary'!I100 -> 2527.613 | AC26: ='[2]Pricing Block Summary'!J100 -> 2569.463
C27: Large throughput (DBT) | E27: JGN / AAD
C28: Large scale generation (DBG) | E28: JGN / AAD | V28: ='[2]Pricing Block Summary'!I111 -> 130 | W28: ='[2]Pricing Block Summary'!J111 -> 130 | Y28: ='[2]Pricing Block Summary'!I112 -> 137.0843033 | Z28: ='[2]Pricing Block Summary'!J112 -> 137.0843033 | AB28: ='[2]Pricing Block Summary'!I113 -> 1.242 | AC28: ='[2]Pricing Block Summary'!J113 -> 1.242
C30: Fixed charges (Large business only) | E30: Source
C31: Existing installations with no more than 15 meters and new entrants
C32: Single Run & Bypass metering installation | E32: JGN / AAD
C33: MHQ/DS < 16 GJ ($/DS pa) | E33: JGN / AAD | G33: ='[2]Pricing Block Summary'!I119/365 -> 32 | H33: ='[2]Pricing Block Summary'!J119/365 -> 32
C34: 16 GJ <= "MHQ/DS" < 50 GJ ($/DS pa) | E34: JGN / AAD | G34: ='[2]Pricing Block Summary'!I120/365 -> 12 | H34: ='[2]Pricing Block Summary'!J120/365 -> 12
C35: 50 GJ <= "MHQ/DS" < 100 GJ ($/DS pa) | E35: JGN / AAD | G35: ='[2]Pricing Block Summary'!I121/365 -> 3 | H35: ='[2]Pricing Block Summary'!J121/365 -> 3
C36: "MHQ/DS" >= 100 GJ ($/DS pa) | E36: JGN / AAD | G36: ='[2]Pricing Block Summary'!I122/365 -> 0 | H36: ='[2]Pricing Block Summary'!J122/365 -> 0
C38: Double Run metering installation
C39: MHQ/DS < 16 GJ ($/DS pa) | E39: JGN / AAD
C40: 16 GJ <= "MHQ/DS" < 50 GJ ($/DS pa) | E40: JGN / AAD
C41: 50 GJ <= "MHQ/DS" < 100 GJ ($/DS pa) | E41: JGN / AAD
C42: "MHQ/DS" >= 100 GJ ($/DS pa) | E42: JGN / AAD
C44: Existing installations with more than 15 meters (closed to new entrants)
C45: Number of meters | E45: JGN / AAD | G45: 106 | H45: 106
C47: Ancillary services | E47: Source
C48: Request for service ($/hr) | E48: JGN / AAD | AE48: ='[2]Pricing Block Summary'!I147 -> 5.5 | AF48: ='[2]Pricing Block Summary'!J147 -> 5.5
C49: Reconnection fee ($/request) | E49: JGN / AAD | AH49: ='[2]Pricing Block Summary'!I135 -> 15 | AI49: ='[2]Pricing Block Summary'!J135 -> 15
C50: Disconnection fee ($/request) | E50: JGN / AAD | AH50: ='[2]Pricing Block Summary'!I138 -> 10.70276675 | AI50: ='[2]Pricing Block Summary'!J138 -> 10.70276675
C51: Decommissioning & meter removal ($/request) | E51: JGN / AAD | AH51: ='[2]Pricing Block Summary'!I141 -> 6.498108382 | AI51: ='[2]Pricing Block Summary'!J141 -> 6.498108382
C52: Special meter read | E52: JGN / AAD | AH52: ='[2]Pricing Block Summary'!I144 -> 654.5505312 | AI52: ='[2]Pricing Block Summary'!J144 -> 654.5505312
C54: Total | E54: Calculated
A56: =IF(COUNTA($G56:$AH56)=COUNTIF($G56:$AH56,"OK"),"OK","Check") -> Check | C56: Ok/Check | G56: =IF(ROUND(SUM('[2]Pricing Block Summary'!I16,'[2]Pricing Block Summary'!I27,'[2]Pricing Block Summary'!I38,'[2]Pricing Block Summary'!I49,'[2]Pricing Block Summary'!I79,'[2]Pricing Block Summary'!I90,'[2]Pricing Block Summary'!I119:I122)/365-SUM(G12:G15,G24:G25,G33:G36),6)=0,"Ok","Check") -> Ok | H56: =IF(ROUND(SUM('[2]Pricing Block Summary'!J16,'[2]Pricing Block Summary'!J27,'[2]Pricing Block Summary'!J38,'[2]Pricing Block Summary'!J49,'[2]Pricing Block Summary'!J79,'[2]Pricing Block Summary'!J90,'[2]Pricing Block Summary'!J119:J122)/365-SUM(H12:H15,H24:H25,H33:H36),6)=0,"Ok","Check") -> Ok | J56: =IF(ROUND(SUM('[2]Pricing Block Summary'!$I$9,'[2]Pricing Block Summary'!$I$21,'[2]Pricing Block Summary'!$I$32,'[2]Pricing Block Summary'!$I$43,'[2]Pricing Block Summary'!$I$73,'[2]Pricing Block Summary'!$I$84,'[2]Pricing Block Summary'!$I$106)-SUM(J12:J14,J24:J25,J27),6)=0,"Ok","Check") -> Check | K56: =IF(ROUND(SUM('[2]Pricing Block Summary'!$J$9,'[2]Pricing Block Summary'!$J$21,'[2]Pricing Block Summary'!$J$32,'[2]Pricing Block Summary'!$J$43,'[2]Pricing Block Summary'!$J$73,'[2]Pricing Block Summary'!$J$84,'[2]Pricing Block Summary'!$J$106)-SUM(K12:K14,K24:K25,K27),6)=0,"Ok","Check") -> Check | M56: =IF(ROUND(SUM('[2]Pricing Block Summary'!$I$10,'[2]Pricing Block Summary'!$I$22,'[2]Pricing Block Summary'!$I$33,'[2]Pricing Block Summary'!$I$44,'[2]Pricing Block Summary'!$I$74,'[2]Pricing Block Summary'!$I$85)-SUM(M12:M14,M24:M25),6)=0,"Ok","Check") -> Ok | N56: =IF(ROUND(SUM('[2]Pricing Block Summary'!$J$10,'[2]Pricing Block Summary'!$J$22,'[2]Pricing Block Summary'!$J$33,'[2]Pricing Block Summary'!$J$44,'[2]Pricing Block Summary'!$J$74,'[2]Pricing Block Summary'!$J$85)-SUM(N12:N14,N24:N25),6)=0,"Ok","Check") -> Ok | P56: =IF(ROUND(SUM('[2]Pricing Block Summary'!$I$11,'[2]Pricing Block Summary'!$I$23,'[2]Pricing Block Summary'!$I$34,'[2]Pricing Block Summary'!$I$45,'[2]Pricing Block Summary'!$I$75,'[2]Pricing Block Summary'!$I$86)-SUM(P12:P14,P24:P25),6)=0,"Ok","Check") -> Ok | Q56: =IF(ROUND(SUM('[2]Pricing Block Summary'!$J$11,'[2]Pricing Block Summary'!$J$23,'[2]Pricing Block Summary'!$J$34,'[2]Pricing Block Summary'!$J$45,'[2]Pricing Block Summary'!$J$75,'[2]Pricing Block Summary'!$J$86)-SUM(Q12:Q14,Q24:Q25),6)=0,"Ok","Check") -> Ok | S56: =IF(ROUND(SUM('[2]Pricing Block Summary'!$I$12)-SUM(S12),6)=0,"Ok","Check") -> Ok | T56: =IF(ROUND(SUM('[2]Pricing Block Summary'!$J$12)-SUM(T12),6)=0,"Ok","Check") -> Ok | V56: =IF(ROUND(SUM('[2]Pricing Block Summary'!$I$98,'[2]Pricing Block Summary'!$I$111,'[2]Pricing Block Summary'!$I$43)-SUM(V15,V26,V28),6)=0,"Ok","Check") -> Ok | W56: =IF(ROUND(SUM('[2]Pricing Block Summary'!$J$98,'[2]Pricing Block Summary'!$J$111,'[2]Pricing Block Summary'!$J$43)-SUM(W15,W26,W28),6)=0,"Ok","Check") -> Ok | Y56: =IF(ROUND(SUM('[2]Pricing Block Summary'!$I$99,'[2]Pricing Block Summary'!$I$112,'[2]Pricing Block Summary'!$I$44)-SUM(Y15,Y26,Y28),6)=0,"Ok","Check") -> Ok | Z56: =IF(ROUND(SUM('[2]Pricing Block Summary'!$J$99,'[2]Pricing Block Summary'!$J$112,'[2]Pricing Block Summary'!$J$44)-SUM(Z15,Z26,Z28),6)=0,"Ok","Check") -> Ok | AB56: =IF(ROUND(SUM('[2]Pricing Block Summary'!$I$100,'[2]Pricing Block Summary'!$I$113,'[2]Pricing Block Summary'!$I$45)-SUM(AB15,AB26,AB28),6)=0,"Ok","Check") -> Ok | AC56: =IF(ROUND(SUM('[2]Pricing Block Summary'!$J$100,'[2]Pricing Block Summary'!$J$113,'[2]Pricing Block Summary'!$J$45)-SUM(AC15,AC26,AC28),6)=0,"Ok","Check") -> Ok | AE56: =IF(ROUND('[2]Pricing Block Summary'!$I$147-AE48,6)=0,"Ok","Check") -> Ok | AF56: =IF(ROUND('[2]Pricing Block Summary'!$J$147-AF48,6)=0,"Ok","Check") -> Ok | AH56: =IF(ROUND(SUM('[2]Pricing Block Summary'!$I$57,'[2]Pricing Block Summary'!$I$60,'[2]Pricing Block Summary'!$I$63,'[2]Pricing Block Summary'!$I$66,'[2]Pricing Block Summary'!$I$135,'[2]Pricing Block Summary'!$I$138,'[2]Pricing Block Summary'!$I$141,'[2]Pricing Block Summary'!$I$144)-SUM(AH49:AH52,AH18:AH21),6)=0,"Ok","Check") -> Ok | AI56: =IF(ROUND(SUM('[2]Pricing Block Summary'!$J$57,'[2]Pricing Block Summary'!$J$60,'[2]Pricing Block Summary'!$J$63,'[2]Pricing Block Summary'!$J$66,'[2]Pricing Block Summary'!$J$135,'[2]Pricing Block Summary'!$J$138,'[2]Pricing Block Summary'!$J$141,'[2]Pricing Block Summary'!$J$144)-SUM(AI49:AI52,AI18:AI21),6)=0,"Ok","Check") -> Ok
C59: Proposed tariffs
C61: Basis | G61: Customer Number or Delivery Station | J61: Throughput Block 1 (GJ) | M61: Throughput Block 2 (GJ) | P61: Throughput Block 3 (GJ) | S61: Throughput Block 4 (GJ) | V61: Capacity Block 1 (GJ) | Y61: Capacity Block 2 (GJ) | AB61: Capacity Block 3 (GJ) | AE61: Ancillary services (Hour) | AH61: Ancillary services (Request)
C62: Year | G62: 2015-16 | H62: 2016-17 | J62: 2015-16 | K62: 2016-17 | M62: 2015-16 | N62: 2016-17 | P62: 2015-16 | Q62: 2016-17 | S62: 2015-16 | T62: 2016-17 | V62: 2015-16 | W62: 2016-17 | Y62: 2015-16 | Z62: 2016-17 | AB62: 2015-16 | AC62: 2016-17 | AE62: 2015-16 | AF62: 2016-17 | AH62: 2015-16 | AI62: 2016-17
C65: Individually metered (VRI) | E65: JGN / AAD | G65: 80 | H65: 82.03848975 | J65: 12.09453791 | K65: 12.4027203 | M65: 7.55 | N65: 7.74238247 | P65: 7.15 | Q65: 7.332190022 | S65: 7 | T65: 7.178367853
C66: Individually metered with gas heating & hot water (VRH) | E66: JGN / AAD | G66: 180 | H66: 184.5866019 | J66: 7.45 | K66: 6.932294971 | M66: 7.1 | N66: 6.606616684 | P66: 7.05 | Q66: 6.560091214
C67: Boundary metered with gas heating and cooking (VRB) | E67: JGN / AAD | G67: 800 | H67: 820.3848975 | J67: 12.09453791 | K67: 12.4027203 | M67: 7.55 | N67: 7.74238247 | P67: 7.15 | Q67: 7.332190022
C68: Large scale generation (VRG) | E68: JGN / AAD | G68: 16000 | H68: 16800 | V68: 290.7 | W68: 305.235 | Y68: 285.95 | Z68: 300.2475 | AB68: 282.15 | AC68: 296.2575
C70: Ancillary services | E70: Source
C71: Reconnection fee | E71: JGN / AAD | AH71: 48.76 | AI71: 50.0024595
C72: Disconnection fee | E72: JGN / AAD | AH72: 146.27 | AI72: 149.9971237
C73: Decommissioning & meter removal | E73: JGN / AAD | AH73: 780.11 | AI73: 799.988078
C74: Special meter read | E74: JGN / AAD | AH74: 19.5 | AI74: 19.99688188
C76: TARIFF CLASS - BUSINESS | E76: Source
C77: Small (VBS) | E77: JGN / AAD | G77: 130 | H77: 133.3125458 | J77: 9.95 | K77: 9.258568452 | M77: 7.717130989 | N77: 7.180862865 | P77: 7.48 | Q77: 6.960210253
C78: Medium (VBM) | E78: JGN / AAD | G78: 2000 | H78: 2050.962244 | J78: 7.25 | K78: 6.746193093 | M78: 6 | N78: 5.583056353 | P78: 5.5 | Q78: 5.117801657
C79: Large capacity (DBC) | E79: JGN / AAD | V79: 306 | W79: 321.3 | Y79: 301 | Z79: 316.05 | AB79: 297 | AC79: 311.85
C80: Large throughput (DBT) | E80: JGN / AAD | J80: 4.38 | K80: 4.599
C81: Large scale generation (DBG) | E81: JGN / AAD | V81: 300 | W81: 315 | Y81: 285 | Z81: 299.25 | AB81: 250 | AC81: 262.5
C83: Fixed charges (Large business only) | E83: Source
C84: Existing installations with no more than 15 meters and new entrants
C85: Single Run & Bypass metering installation
C86: MHQ/DS < 16 GJ ($/DS pa) | E86: JGN / AAD | G86: 8000 | H86: 8400
C87: 16 GJ <= "MHQ/DS" < 50 GJ ($/DS pa) | E87: JGN / AAD | G87: 11000 | H87: 11550
C88: 50 GJ <= "MHQ/DS" < 100 GJ ($/DS pa) | E88: JGN / AAD | G88: 17000 | H88: 17850
C89: "MHQ/DS" >= 100 GJ ($/DS pa) | E89: JGN / AAD | G89: 22000 | H89: 23100
C91: Double Run metering installation
C92: MHQ/DS < 16 GJ ($/DS pa) | E92: JGN / AAD | G92: 16000 | H92: 16800
C93: 16 GJ <= "MHQ/DS" < 50 GJ ($/DS pa) | E93: JGN / AAD | G93: 22000 | H93: 23100
C94: 50 GJ <= "MHQ/DS" < 100 GJ ($/DS pa) | E94: JGN / AAD | G94: 34000 | H94: 35700
C95: "MHQ/DS" >= 100 GJ ($/DS pa) | E95: JGN / AAD | G95: 44000 | H95: 46200
C97: Existing installations with more than 15 meters (closed to new entrants)
C98: Number of meters | E98: JGN / AAD | G98: 1900 | H98: 1995
C100: Ancillary services | E100: Source
C101: Request for service ($/hr) | E101: JGN / AAD | AE101: 100 | AF101: 102.5481122
C102: Reconnection fee ($/request) | E102: JGN / AAD | AH102: 58.51 | AI102: 60.00090044
C103: Disconnection fee ($/request) | E103: JGN / AAD | AH103: 195.03 | AI103: 199.9995832
C104: Decommissioning & meter removal ($/request) | E104: JGN / AAD | AH104: 1335.93 | AI104: 1369.970995
C105: Special meter read | E105: JGN / AAD | AH105: 19.5 | AI105: 19.99688188
C108: Forecast Revenues ($nominal)
C110: Revenue $nominal | G110: Customer Number or Delivery Station | J110: Throughput Block 1 (GJ) | M110: Throughput Block 2 (GJ) | P110: Throughput Block 3 (GJ) | S110: Throughput Block 4 (GJ) | V110: Capacity Block 1 (GJ) | Y110: Capacity Block 2 (GJ) | AB110: Capacity Block 3 (GJ) | AE110: Ancillary services (Hour) | AH110: Ancillary services (Request)
C111: Year | G111: 2015-16 | H111: 2016-17 | J111: 2015-16 | K111: 2016-17 | M111: 2015-16 | N111: 2016-17 | P111: 2015-16 | Q111: 2016-17 | S111: 2015-16 | T111: 2016-17 | V111: 2015-16 | W111: 2016-17 | Y111: 2015-16 | Z111: 2016-17 | AB111: 2015-16 | AC111: 2016-17 | AE111: 2015-16 | AF111: 2016-17 | AH111: 2015-16 | AI111: 2016-17
C113: TARIFF CLASS - RESIDENTIAL | E113: Source
C114: Individually metered (VRI) | E114: calculated | G114: =IF(G12="","",G12*G65) -> 7579369.296 | H114: 7907158.595 | J114: =IF(J12="","",J12*J65) -> 10794738.7 | K114: =IF(K12="","",K12*K65) -> 10828993.45 | M114: =IF(M12="","",M12*M65) -> 10209691.97 | N114: 10242090.2 | P114: =IF(P12="","",P12*P65) -> 144189.263 | Q114: 144646.8161 | S114: =IF(S12="","",S12*S65) -> 6344.463523 | T114: 6364.596291 | V114: =IF(V12="","",V12*V65) ->  | Y114: =IF(Y12="","",Y12*Y65) ->  | AB114: =IF(AB12="","",AB12*AB65) ->  | AE114: =IF(AE12="","",AE12*AE65) ->  | AH114: =IF(AH12="","",AH12*AH65) -> 
C115: Individually metered with gas heating & hot water (VRH) | E115: calculated | G115: 6815928.798 | H115: 7147966.872 | J115: 4522741.585 | K115: =IF(K13="","",K13*K66) -> 4116028.858 | M115: 8638487.016 | N115: 7861661.159 | P115: 4975395.168 | Q115: 4527977.048
C116: Boundary metered with gas heating and cooking (VRB) | E116: calculated | G116: 40189.59917 | H116: 64391.42352 | J116: 121090.1518 | K116: =IF(K14="","",K14*K67) -> 173266.1181 | M116: 80266.06741 | N116: 114851.5359
C117: Large scale generation (VRG) | E117: calculated | G117: 0 | H117: 0 | K117: =IF(K15="","",K15*K68) ->  | V117: 0 | W117: 0 | Y117: 0 | Z117: 0 | AB117: 0 | AC117: 0
C119: Ancillary services | E119: Source
C120: Reconnection fee | E120: calculated | G120: =IF(G18="","",G18*G71) ->  | J120: =IF(J18="","",J18*J71) ->  | K120: =IF(K18="","",K18*K71) ->  | M120: =IF(M18="","",M18*M71) ->  | P120: =IF(P18="","",P18*P71) ->  | S120: =IF(S18="","",S18*S71) ->  | V120: =IF(V18="","",V18*V71) ->  | Y120: =IF(Y18="","",Y18*Y71) ->  | AB120: =IF(AB18="","",AB18*AB71) ->  | AE120: =IF(AE18="","",AE18*AE71) ->  | AH120: =IF(AH18="","",AH18*AH71) -> 5071.04 | AI120: 5200.255788
C121: Disconnection fee | E121: calculated | K121: =IF(K19="","",K19*K72) ->  | AH121: 16923.17386 | AI121: 15419.63238
C122: Decommissioning & meter removal | E122: calculated | K122: =IF(K20="","",K20*K73) ->  | AH122: 480497.1132 | AI122: 641359.7649
C123: Special meter read | E123: calculated | K123: =IF(K21="","",K21*K74) ->  | AH123: 488795.7646 | AI123: 501250.8291
C125: TARIFF CLASS - BUSINESS | E125: Source
C126: Small (VBS) | E126: calculated | G126: =IF(G24="","",G24*G77) -> 734398.275 | H126: 772226.6558 | J126: =IF(J24="","",J24*J77) -> 595573.763 | K126: =IF(K24="","",K24*K77) -> 559241.3358 | M126: =IF(M24="","",M24*M77) -> 6301085.517 | N126: 5916693.617 | P126: =IF(P24="","",P24*P77) -> 4925005.951 | Q126: 4624560.514 | S126: =IF(S24="","",S24*S77) ->  | V126: =IF(V24="","",V24*V77) ->  | Y126: =IF(Y24="","",Y24*Y77) ->  | AB126: =IF(AB24="","",AB24*AB77) ->  | AE126: =IF(AE24="","",AE24*AE77) ->  | AH126: =IF(AH24="","",AH24*AH77) -> 
C127: Medium (VBM) | E127: calculated | G127: 15510.76277 | H127: 16451.04641 | J127: 85066.3413 | K127: =IF(K25="","",K25*K78) -> 80706.9284 | M127: 53188.33578 | N127: 50462.58182 | P127: 38268.21123 | Q127: 36307.07206
C128: Large capacity (DBC) | E128: calculated | K128: =IF(K26="","",K26*K79) ->  | V128: 549142.8238 | W128: 576599.965 | Y128: 585267.9802 | Z128: 614531.3792 | AB128: 750701.061 | AC128: 801287.0366
C129: Large throughput (DBT) | E129: calculated
C130: Large scale generation (DBG) | E130: calculated | K130: =IF(K28="","",K28*K81) ->  | V130: 39000 | W130: 40950 | Y130: 39069.02645 | Z130: 41022.47777 | AB130: 310.5 | AC130: 326.025
C132: Fixed charges (Large business only) | E132: Source
C133: Existing installations with no more than 15 meters and new entrants
C134: Single Run & Bypass metering installation
C135: MHQ/DS < 16 GJ ($/DS pa) | E135: calculated | G135: =IF(G33="","",G33*G86) -> 256000 | H135: 268800 | J135: =IF(J33="","",J33*J86) ->  | K135: =IF(K33="","",K33*K86) ->  | M135: =IF(M33="","",M33*M86) ->  | P135: =IF(P33="","",P33*P86) ->  | S135: =IF(S33="","",S33*S86) ->  | V135: =IF(V33="","",V33*V86) ->  | Y135: =IF(Y33="","",Y33*Y86) ->  | AB135: =IF(AB33="","",AB33*AB86) ->  | AE135: =IF(AE33="","",AE33*AE86) ->  | AH135: =IF(AH33="","",AH33*AH86) -> 
C136: 16 GJ <= "MHQ/DS" < 50 GJ ($/DS pa) | E136: calculated | G136: 132000 | H136: 138600 | K136: =IF(K34="","",K34*K87) -> 
C137: 50 GJ <= "MHQ/DS" < 100 GJ ($/DS pa) | E137: calculated | G137: 51000 | H137: 53550 | K137: =IF(K35="","",K35*K88) -> 
C138: "MHQ/DS" >= 100 GJ ($/DS pa) | E138: calculated | G138: 0 | H138: 0 | K138: =IF(K36="","",K36*K89) -> 
C140: Double Run metering installation
C141: MHQ/DS < 16 GJ ($/DS pa) | E141: calculated | G141: =IF(G39="","",G39*G92) ->  | J141: =IF(J39="","",J39*J92) ->  | K141: =IF(K39="","",K39*K92) ->  | M141: =IF(M39="","",M39*M92) ->  | P141: =IF(P39="","",P39*P92) ->  | S141: =IF(S39="","",S39*S92) ->  | V141: =IF(V39="","",V39*V92) ->  | Y141: =IF(Y39="","",Y39*Y92) ->  | AB141: =IF(AB39="","",AB39*AB92) ->  | AE141: =IF(AE39="","",AE39*AE92) ->  | AH141: =IF(AH39="","",AH39*AH92) -> 
C142: 16 GJ <= "MHQ/DS" < 50 GJ ($/DS pa) | E142: calculated | K142: =IF(K40="","",K40*K93) -> 
C143: 50 GJ <= "MHQ/DS" < 100 GJ ($/DS pa) | E143: calculated | K143: =IF(K41="","",K41*K94) -> 
C144: "MHQ/DS" >= 100 GJ ($/DS pa) | E144: calculated | K144: =IF(K42="","",K42*K95) -> 
C146: Existing installations with more than 15 meters (closed to new entrants)
C147: Number of meters | E147: calculated | G147: =IF(G45="","",G45*G98) -> 201400 | H147: 211470 | J147: =IF(J45="","",J45*J98) ->  | K147: =IF(K45="","",K45*K98) ->  | M147: =IF(M45="","",M45*M98) ->  | P147: =IF(P45="","",P45*P98) ->  | S147: =IF(S45="","",S45*S98) ->  | V147: =IF(V45="","",V45*V98) ->  | Y147: =IF(Y45="","",Y45*Y98) ->  | AB147: =IF(AB45="","",AB45*AB98) ->  | AE147: =IF(AE45="","",AE45*AE98) ->  | AH147: =IF(AH45="","",AH45*AH98) -> 
C149: Ancillary services | E149: Source
C150: Request for service ($/hr) | E150: calculated | G150: =IF(G48="","",G48*G101) ->  | J150: =IF(J48="","",J48*J101) ->  | K150: =IF(K48="","",K48*K101) ->  | M150: =IF(M48="","",M48*M101) ->  | P150: =IF(P48="","",P48*P101) ->  | S150: =IF(S48="","",S48*S101) ->  | V150: =IF(V48="","",V48*V101) ->  | Y150: =IF(Y48="","",Y48*Y101) ->  | AB150: =IF(AB48="","",AB48*AB101) ->  | AE150: =IF(AE48="","",AE48*AE101) -> 550 | AF150: 564.0146171 | AH150: =IF(AH48="","",AH48*AH101) -> 
C151: Reconnection fee ($/request) | E151: calculated | K151: =IF(K49="","",K49*K102) ->  | AH151: 877.65 | AI151: 900.0135066
C152: Disconnection fee ($/request) | E152: calculated | K152: =IF(K50="","",K50*K103) ->  | AH152: 2087.360599 | AI152: 2140.548888
C153: Decommissioning & meter removal ($/request) | E153: calculated | K153: =IF(K51="","",K51*K104) ->  | AH153: 8681.017931 | AI153: 8902.220007
C154: Special meter read | E154: calculated | K154: =IF(K52="","",K52*K105) ->  | AH154: 12763.73536 | AI154: 13088.96965
C156: Total | E156: calculated | G156: =SUM(G150:G154,G147,G141:G144,G135:G138,G126:G130,G120:G123,G114:G117) -> 15825796.73 | H156: 16580614.59 | J156: =SUM(J150:J154,J147,J141:J144,J135:J138,J126:J130,J120:J123,J114:J117) -> 16119210.54 | K156: =SUM(K150:K154,K147,K141:K144,K135:K138,K126:K130,K120:K123,K114:K117) -> 15758236.69 | M156: =SUM(M150:M154,M147,M141:M144,M135:M138,M126:M130,M120:M123,M114:M117) -> 25282718.91 | N156: 24185759.09 | P156: =SUM(P150:P154,P147,P141:P144,P135:P138,P126:P130,P120:P123,P114:P117) -> 10082858.59 | Q156: 9333491.45 | S156: =SUM(S150:S154,S147,S141:S144,S135:S138,S126:S130,S120:S123,S114:S117) -> 6344.463523 | T156: 6364.596291 | V156: =SUM(V150:V154,V147,V141:V144,V135:V138,V126:V130,V120:V123,V114:V117) -> 588142.8238 | W156: 617549.965 | Y156: =SUM(Y150:Y154,Y147,Y141:Y144,Y135:Y138,Y126:Y130,Y120:Y123,Y114:Y117) -> 624337.0066 | Z156: 655553.857 | AB156: =SUM(AB150:AB154,AB147,AB141:AB144,AB135:AB138,AB126:AB130,AB120:AB123,AB114:AB117) -> 751011.561 | AC156: 801613.0616 | AE156: =SUM(AE150:AE154,AE147,AE141:AE144,AE135:AE138,AE126:AE130,AE120:AE123,AE114:AE117) -> 550 | AF156: 564.0146171 | AH156: =SUM(AH150:AH154,AH147,AH141:AH144,AH135:AH138,AH126:AH130,AH120:AH123,AH114:AH117) -> 1015696.856 | AI156: 1188262.234
C159: END

Sheet Calc | Existing Revenue
F1: Section Check | G1: =IF(COUNTA($A$18:$A$141)=COUNTIF($A$18:$A$141,"OK"),"OK","Check") -> OK
C6: Calc | Total Revenue 2015-16
C8: Summary
C10: Total Revenue | D10: Source | E10: Unit | F10: Basis | H10: 2015-2016
C12: Volume market | D12: Calculated | E12: $ | F12: $real2016 | H12: =H48+H76 -> 66008369.46
C13: Demand market | D13: Calculated | E13: $ | F13: $real2016 | H13: =H88+H112 -> 2950992.983
C14: Ancillary Services | D14: Calculated | E14: $ | F14: $real2016 | H14: =H139 -> 1494505.331
C16: Total | D16: Calculated | E16: $ | F16: $real2016 | H16: =SUM(H12:H14) -> 70453867.77
A18: =IF(COUNTA($H18:$H18)=COUNTIF($H18:$H18,"OK"),"OK","Check") -> OK | F18: Ok/Check | H18: =IF(ROUND(H16-SUM(H48,H76,H88,H112,H139),6)=0,"Ok","Check") -> Ok
C20: Calc | Volume market Revenue
C22: Customer Numbers Fixed Charges
C24: A. Charge components per year | D24: Source | E24: Unit | F24: Basis | H24: 2015-2016
C26: Fixed Charge | D26: Core Energy | E26: =number -> number | H26: ='[2]Tariff_Pricing Block_Org'!$I$86 -> 139772.4701
C27: Provision of basic metering <6m3/hr | D27: Core Energy | E27: =number -> number | H27: ='[2]Tariff_Pricing Block_Org'!$I$53 -> 134880.4337
C28: Provision of basic metering >6m3/hr (variable charge) | D28: Core Energy | E28: GJ | H28: ='[2]Tariff_Pricing Block_Org'!$I$66 -> 2057021.941
C29: Quarterly meter reading charge | D29: Core Energy | E29: =number -> number | H29: ='[2]Tariff_Pricing Block_Org'!$I$85 -> 133902.0264
C30: Monthly meter reading charge | D30: Core Energy | E30: =number -> number | H30: ='[2]Tariff_Pricing Block_Org'!$I$84 -> 5870.443746
C32: B. 2015-16 prices | D32: Source | E32: Unit | F32: Basis | H32: 2015-2016
C34: Fixed Charge | D34: AAD | E34: $/pa | F34: $real2016 | H34: 52.58
C35: Provision of basic metering <6m3/hr | D35: AAD | E35: $/pa | F35: $real2016 | H35: 31.58
C36: Provision of basic metering >6m3/hr (variable charge) | D36: AAD | E36: $/GJ | F36: $real2016 | H36: 0.2606
C37: Quarterly meter reading charge | D37: AAD | E37: $/pa | F37: $real2016 | H37: 5.39
C38: Monthly meter reading charge | D38: AAD | E38: $/pa | F38: $real2016 | H38: 51.19
C40: C. Revenue | D40: Source | E40: Unit | F40: Basis | H40: 2015-2016
C42: Fixed Charge | D42: calculated | E42: $ | F42: $real2016 | H42: =H26*H34 -> 7349236.48
C43: Provision of basic metering <6m3/hr | D43: calculated | E43: $ | F43: $real2016 | H43: =H27*H35 -> 4259524.096
C44: Provision of basic metering >6m3/hr (variable charge) | D44: calculated | E44: $ | F44: $real2016 | H44: 536059.9179
C45: Quarterly meter reading charge | D45: calculated | E45: $ | F45: $real2016 | H45: 721731.9223
C46: Monthly meter reading charge | D46: calculated | E46: $ | F46: $real2016 | H46: 300508.0154
C48: Total | D48: calculated | E48: $ | F48: $real2016 | H48: =SUM(H42:H46) -> 13167060.43
C51: Consumption
C53: A. Consumption by block | D53: Source | E53: Unit | F53: Basis | H53: 2015-2016
C55: Block 1 | D55: Core Energy | E55: GJ | H55: ='[2]Tariff_Pricing Block_Org'!I35 -> 1452991.002
C56: Block 2 | D56: Core Energy | E56: GJ | H56: ='[2]Tariff_Pricing Block_Org'!I36 -> 4185481.544
C57: Block 3 | D57: Core Energy | E57: GJ | H57: ='[2]Tariff_Pricing Block_Org'!I37 -> 559382.4008
C58: Block 4 | D58: Core Energy | E58: GJ | H58: ='[2]Tariff_Pricing Block_Org'!I38 -> 180507.6618
C60: Total | D60: Calculated | E60: GJ | H60: =SUM(H55:H58) -> 6378362.608
C62: B. 2015-16 prices | D62: Source | E62: Unit | F62: Basis | H62: 2015-2016
C64: Block 1 | D64: AAD | E64: $/GJ | F64: $real2016 | H64: 9.97
C65: Block 2 | D65: AAD | E65: $/GJ | F65: $real2016 | H65: 7.96
C66: Block 3 | D66: AAD | E66: $/GJ | F66: $real2016 | H66: 7.31
C67: Block 4 | D67: AAD | E67: $/GJ | F67: $real2016 | H67: 5.26
C69: C. Revenue | D69: Source | E69: Unit | F69: Basis | H69: 2015-2016
C71: Block 1 | D71: calculated | E71: $ | F71: $real2016 | H71: =H55*H64 -> 14486320.29
C72: Block 2 | D72: calculated | E72: $ | F72: $real2016 | H72: =H56*H65 -> 33316433.09
C73: Block 3 | D73: calculated | E73: $ | F73: $real2016 | H73: 4089085.35
C74: Block 4 | D74: calculated | E74: $ | F74: $real2016 | H74: 949470.3012
C76: Total | D76: Calculated | E76: $ | F76: $real2016 | H76: =SUM(H71:H74) -> 52841309.03
C78: Calc | Demand market Revenue
C80: Meterin Charge components
C82: A. Revenue from Metering charge components | D82: Source | E82: Unit | F82: Basis | H82: 2015-2016
C84: Basic Metering Equipment Charge | D84: AAD | E84: $ | F84: $real2016 | H84: ='[3]Calc | 2015-2016 Demand Market'!$O$60 -> 468846
C85: Meter Communications charge | D85: AAD | E85: $ | F85: $real2016 | H85: ='[3]Calc | 2015-2016 Demand Market'!$P$60 -> 82485
C86: Meter Reading Charge | D86: AAD | E86: $ | F86: $real2016 | H86: ='[3]Calc | 2015-2016 Demand Market'!$Q$60 -> 41474.14
C88: Total | D88: Calculated | E88: $ | F88: $real2016 | H88: =SUM(H84:H86) -> 592805.14
C90: Consumption
C92: Consumption | D92: Source | E92: Unit | F92: Basis | H92: 2015-2016
C94: Demand market | D94: Core Energy | E94: GJ | H94: =[2]Summary!$P$88 -> 1201835.776
C95: MDQ | D95: Core Energy | E95: GJ | H95: =[2]Summary!$P$93 -> 8024.822369
C97: A. Assumptions | D97: Source | E97: Unit | F97: Basis | H97: 2015-2016
C99: Chargeable Throughput | D99: AAD | E99: GJ
C100: Chargeable Capacity | D100: AAD | E100: GJ | H100: =H95-'[3]Calc | 2015-2016 Demand Market'!$J$27 -> 7224.822369
C102: B. 2015-16 prices | D102: Source | E102: Unit | F102: Basis | H102: 2015-2016
C104: Throughput | D104: AAD | E104: $/GJ | F104: $real2016 | H104: 4.459
C105: Capacity | D105: AAD | E105: $/GJ of MDQ | F105: $real2016 | H105: 304.25
C107: C. Revenue | D107: Source | E107: Unit | F107: Basis | H107: 2015-2016
C109: Throughput | D109: calculated | E109: $ | F109: $real2016
C110: Capacity | D110: calculated | E110: $ | F110: $real2016 | H110: =H100*H105 -> 2198152.206
C112: Total | D112: Calculated | E112: $ | F112: $real2016 | H112: 2358187.843
C114: Calc | Ancillary Service Revenue
C116: Ancillary Services
C118: A. Ancillary Services number | D118: Source | E118: Unit | F118: Basis | H118: 2015-2016
C120: Volume market reconnections | D120: Core Energy | E120: =number -> number | H120: ='[2]Pricing Block Summary'!I57+'[2]Pricing Block Summary'!$I$135 -> 119
C121: Volume market disconnections | D121: Core Energy | E121: =number -> number | H121: ='[2]Pricing Block Summary'!I60+'[2]Pricing Block Summary'!I63+'[2]Pricing Block Summary'!I138+'[2]Pricing Block Summary'!I141 -> 748.8341399
C122: Volume market special meter reads | D122: Core Energy | E122: =number -> number | H122: ='[2]Pricing Block Summary'!I66+'[2]Pricing Block Summary'!I144 -> 25721
C123: Demand Market RFS hours | D123: Core Energy | E123: =number -> number | H123: ='[2]Pricing Block Summary'!$I$147 -> 5.5
C125: B. 2015-16 prices | D125: Source | E125: Unit | F125: Basis | H125: 2015-2016
C127: Volume market reconnections | D127: AAD | E127: $ | F127: $real2016 | H127: 101.28
C128: Volume market disconnections | D128: AAD | E128: $ | F128: $real2016 | H128: 137.07
C129: Volume market special meter reads | D129: AAD | E129: $ | F129: $real2016 | H129: 53.63
C130: Demand Market RFS hours | D130: AAD | E130: $ | F130: $real2016 | H130: 71.47
C132: C. Revenue | D132: Source | E132: Unit | F132: Basis | H132: 2015-2016
C134: Volume market reconnections | D134: calculated | E134: $ | F134: $real2016 | H134: =H120*H127 -> 12052.32
C135: Volume market disconnections | D135: calculated | E135: $ | F135: $real2016 | H135: =H121*H128 -> 102642.6956
C136: Volume market special meter reads | D136: calculated | E136: $ | F136: $real2016 | H136: 1379417.23
C137: Demand Market RFS hours | D137: calculated | E137: $ | F137: $real2016 | H137: 393.085
C139: Total | D139: Calculated | E139: $ | F139: $real2016 | H139: =SUM(H134:H137) -> 1494505.331
C142: END
